[Event "FIDE World Rapid Chess Championship 2021"]
[White "Sindarov, Javokhir"]
[Black "Kovalev, Vladislav"]
[WhiteFideId "14205483"]
[BlackFideId "13504398"]
[WhiteElo "2353"]
[BlackElo "2647"]
[Result "1/2-1/2"]
[Round "12"]
[TimeControl "900+10"]
[Date "2021.12.28"]
[WhiteClock "0:01:26"]
[BlackClock "0:00:18"]

1. e4 {[%clk 0:15:00]}  e5 {[%clk 0:15:00]} 2. Nf3 {[%clk 0:15:27]}  Nc6 {[%clk 0:15:28]} 3. Bc4 {[%clk 0:15:27]}  Nf6 {[%clk 0:15:28]} 4. Ng5 {[%clk 0:15:27]}  d5 {[%clk 0:15:28]} 5. exd5 {[%clk 0:15:27]}  Na5 {[%clk 0:15:28]} 6. Bb5+ {[%clk 0:15:27]}  c6 {[%clk 0:15:28]} 7. dxc6 {[%clk 0:15:27]}  bxc6 {[%clk 0:15:28]} 8. Bd3 {[%clk 0:15:27]}  Nd5 {[%clk 0:15:28]} 9. Nf3 {[%clk 0:15:27]}  Bd6 {[%clk 0:15:28]} 10. O-O {[%clk 0:15:27]}  O-O {[%clk 0:15:28]} 11. Re1 {[%clk 0:15:27]}  f5 {[%clk 0:15:28]} 12. Nxe5 {[%clk 0:15:27]}  Qf6 {[%clk 0:15:28]} 13. Nf3 {[%clk 0:15:21]}  g5 {[%clk 0:16:52]} 14. g3 {[%clk 0:15:21]}  f4 {[%clk 0:16:52]} 15. Nc3 {[%clk 0:12:10]}  fxg3 {[%clk 0:16:52]} 16. hxg3 {[%clk 0:12:10]}  Qxf3 {[%clk 0:16:52]} 17. Qxf3 {[%clk 0:12:10]}  Rxf3 {[%clk 0:16:52]} 18. Be4 {[%clk 0:12:10]}  Rf7 {[%clk 0:14:35]} 19. Nxd5 {[%clk 0:12:36]}  cxd5 {[%clk 0:14:35]} 20. Bxd5 {[%clk 0:12:36]}  Bb7 {[%clk 0:14:35]} 21. Bxf7+ {[%clk 0:12:36]}  Kxf7 {[%clk 0:14:35]} 22. d4 {[%clk 0:12:36]}  Rg8 {[%clk 0:13:03]} 23. b3 {[%clk 0:12:17]}  Bf3 {[%clk 0:10:10]} 24. d5 {[%clk 0:11:37]}  Rg6 {[%clk 0:08:13]} 25. Re6 {[%clk 0:11:37]}  Rxe6 {[%clk 0:08:29]} 26. dxe6+ {[%clk 0:08:51]}  Kxe6 {[%clk 0:08:29]} 27. Bxg5 {[%clk 0:08:51]}  Bb4 {[%clk 0:08:29]} 28. c3 {[%clk 0:08:51]}  Bxc3 {[%clk 0:08:27]} 29. Rc1 {[%clk 0:06:52]}  Be5 {[%clk 0:08:27]} 30. Bf4 {[%clk 0:06:52]}  Bxf4 {[%clk 0:08:27]} 31. gxf4 {[%clk 0:06:52]}  Nc6 {[%clk 0:08:27]} 32. Kh2 {[%clk 0:06:52]}  h5 {[%clk 0:04:00]} 33. Kg3 {[%clk 0:06:39]}  Bd5 {[%clk 0:04:00]} 34. Kh4 {[%clk 0:06:39]}  Nb4 {[%clk 0:04:00]} 35. Re1+ {[%clk 0:06:39]}  Kf5 {[%clk 0:04:00]} 36. Re8 {[%clk 0:06:34]}  Kxf4 {[%clk 0:00:00]} 37. Rf8+ {[%clk 0:06:34]}  Ke4 {[%clk 0:00:00]} 38. a3 {[%clk 0:06:34]}  Nc2 {[%clk 0:00:00]} 39. b4 {[%clk 0:01:59]}  Nxa3 {[%clk 0:02:06]} 40. f3+ {[%clk 0:01:59]}  Kd4 {[%clk 0:00:18]} 41. f4 {[%clk 0:01:26]}  Kc4 {[%clk 0:00:18]} 42. f5 {[%clk 0:01:26]}  Kxb4 {[%clk 0:00:18]} 43. f6 {[%clk 0:01:26]}  Nb5 {[%clk 0:00:18]} 44. f7 {[%clk 0:01:26]}  a5 {[%clk 0:00:18]} 45. Kxh5 {[%clk 0:01:26]}  a4 {[%clk 0:00:18]} 46. Kg6 {[%clk 0:01:26]}  a3 {[%clk 0:00:18]} 47. Ra8 {[%clk 0:01:26]}  Bxf7+ {[%clk 0:00:18]} 48. Kxf7 {[%clk 0:01:26]}  Nc3 {[%clk 0:00:18]} 49. Rxa3 {[%clk 0:01:26]}  Kxa3 {[%clk 0:00:18]} 1/2-1/2


[Site "http://www.Chess.com"]

[Event "FIDE World Rapid Chess Championship 2021"]
[White "Pichot, Alan"]
[Black "Harikrishna, Pentala"]
[WhiteFideId "110973"]
[BlackFideId "5007003"]
[WhiteElo "2523"]
[BlackElo "2705"]
[Result "1/2-1/2"]
[Round "12"]
[TimeControl "900+10"]
[Date "2021.12.28"]
[WhiteClock "0:00:09"]
[BlackClock "0:00:25"]

1. e4 {[%clk 0:15:00]}  e5 {[%clk 0:15:18]} 2. Nf3 {[%clk 0:15:18]}  Nc6 {[%clk 0:15:18]} 3. Bb5 {[%clk 0:15:18]}  a6 {[%clk 0:15:18]} 4. Ba4 {[%clk 0:15:18]}  Nf6 {[%clk 0:15:18]} 5. O-O {[%clk 0:15:18]}  Be7 {[%clk 0:15:18]} 6. d3 {[%clk 0:15:18]}  b5 {[%clk 0:15:18]} 7. Bb3 {[%clk 0:15:18]}  d6 {[%clk 0:15:18]} 8. c3 {[%clk 0:15:18]}  O-O {[%clk 0:15:18]} 9. Re1 {[%clk 0:15:18]}  Nb8 {[%clk 0:15:57]} 10. Nbd2 {[%clk 0:15:41]}  Nbd7 {[%clk 0:15:57]} 11. Nf1 {[%clk 0:15:41]}  h6 {[%clk 0:15:57]} 12. Ng3 {[%clk 0:15:41]}  Re8 {[%clk 0:15:57]} 13. d4 {[%clk 0:15:41]}  Bf8 {[%clk 0:15:57]} 14. a4 {[%clk 0:15:41]}  Bb7 {[%clk 0:15:57]} 15. Bc2 {[%clk 0:15:41]}  c5 {[%clk 0:15:57]} 16. d5 {[%clk 0:15:41]}  c4 {[%clk 0:15:57]} 17. Be3 {[%clk 0:14:05]}  Nc5 {[%clk 0:15:51]} 18. Bxc5 {[%clk 0:14:05]}  dxc5 {[%clk 0:15:51]} 19. Nf1 {[%clk 0:14:05]}  Qc7 {[%clk 0:15:51]} 20. Ne3 {[%clk 0:14:05]}  Reb8 {[%clk 0:14:34]} 21. Qe2 {[%clk 0:13:17]}  Bc8 {[%clk 0:14:34]} 22. Ra2 {[%clk 0:11:33]}  Ra7 {[%clk 0:14:34]} 23. axb5 {[%clk 0:11:33]}  axb5 {[%clk 0:14:34]} 24. Rxa7 {[%clk 0:11:33]}  Qxa7 {[%clk 0:14:34]} 25. Nxe5 {[%clk 0:11:33]}  Bb7 {[%clk 0:14:34]} 26. N3g4 {[%clk 0:11:33]}  Nxg4 {[%clk 0:14:34]} 27. Qxg4 {[%clk 0:11:33]}  Bc8 {[%clk 0:12:36]} 28. Qf3 {[%clk 0:11:43]}  Ra8 {[%clk 0:12:36]} 29. h3 {[%clk 0:11:34]}  Qc7 {[%clk 0:07:47]} 30. Nc6 {[%clk 0:11:34]}  Bd7 {[%clk 0:07:47]} 31. e5 {[%clk 0:10:00]}  Bxc6 {[%clk 0:06:27]} 32. dxc6 {[%clk 0:10:00]}  Re8 {[%clk 0:06:27]} 33. Qf5 {[%clk 0:10:11]}  g6 {[%clk 0:06:21]} 34. Qd7 {[%clk 0:10:11]}  Qxd7 {[%clk 0:06:21]} 35. cxd7 {[%clk 0:10:11]}  Rd8 {[%clk 0:06:21]} 36. Rd1 {[%clk 0:10:11]}  Be7 {[%clk 0:05:48]} 37. Be4 {[%clk 0:07:12]}  Rb8 {[%clk 0:05:48]} 38. Bc6 {[%clk 0:07:12]}  Kf8 {[%clk 0:05:48]} 39. g3 {[%clk 0:07:12]}  b4 {[%clk 0:04:41]} 40. Bd5 {[%clk 0:06:07]}  bxc3 {[%clk 0:04:41]} 41. bxc3 {[%clk 0:06:07]}  Bd8 {[%clk 0:04:41]} 42. Bxc4 {[%clk 0:06:07]}  Ke7 {[%clk 0:04:41]} 43. Rd6 {[%clk 0:05:44]}  Rb6 {[%clk 0:03:16]} 44. Rd5 {[%clk 0:05:44]}  Rb7 {[%clk 0:03:02]} 45. Kg2 {[%clk 0:03:27]}  g5 {[%clk 0:01:44]} 46. f4 {[%clk 0:03:23]}  gxf4 {[%clk 0:01:44]} 47. gxf4 {[%clk 0:03:23]}  f6 {[%clk 0:01:44]} 48. exf6+ {[%clk 0:03:23]}  Kxf6 {[%clk 0:01:44]} 49. Bd3 {[%clk 0:03:23]}  c4 {[%clk 0:01:44]} 50. Bxc4 {[%clk 0:03:23]}  Rc7 {[%clk 0:01:44]} 51. Bb5 {[%clk 0:00:36]}  Rxc3 {[%clk 0:01:34]} 52. Re5 {[%clk 0:00:36]}  Be7 {[%clk 0:01:34]} 53. Be2 {[%clk 0:00:36]}  Rc2 {[%clk 0:01:34]} 54. Kf3 {[%clk 0:00:36]}  Rd2 {[%clk 0:01:34]} 55. Bb5 {[%clk 0:00:36]}  Rd6 {[%clk 0:01:34]} 56. Ke4 {[%clk 0:00:36]}  Rd1 {[%clk 0:00:41]} 57. Rh5 {[%clk 0:00:22]}  Kg6 {[%clk 0:00:41]} 58. Re5 {[%clk 0:00:22]}  Kf6 {[%clk 0:00:41]} 59. Bd3 {[%clk 0:00:22]}  Re1+ {[%clk 0:00:41]} 60. Kd5 {[%clk 0:00:22]}  Rxe5+ {[%clk 0:00:41]} 61. fxe5+ {[%clk 0:00:22]}  Kf7 {[%clk 0:00:41]} 62. Bf5 {[%clk 0:00:22]}  Bd8 {[%clk 0:00:41]} 63. Kd6 {[%clk 0:00:22]}  Ba5 {[%clk 0:00:41]} 64. Bg4 {[%clk 0:00:09]}  Bb4+ {[%clk 0:00:25]} 65. Kc7 {[%clk 0:00:09]}  Ba5+ {[%clk 0:00:25]} 66. Kc6 {[%clk 0:00:09]}  Ke7 {[%clk 0:00:25]} 67. Kd5 {[%clk 0:00:09]}  h5 {[%clk 0:00:25]} 68. Bxh5 {[%clk 0:00:09]}  Kxd7 {[%clk 0:00:25]} 69. Ke4 {[%clk 0:00:09]}  Ke7 {[%clk 0:00:25]} 70. Kf5 {[%clk 0:00:09]}  Kf8 {[%clk 0:00:25]} 71. Bf3 {[%clk 0:00:09]}  Kg7 {[%clk 0:00:25]} 72. h4 {[%clk 0:00:09]}  Bc3 {[%clk 0:00:25]} 73. e6 {[%clk 0:00:09]}  Bb4 {[%clk 0:00:25]} 74. h5 {[%clk 0:00:09]}  Kh8 {[%clk 0:00:25]} 75. Ke4 {[%clk 0:00:09]} 1/2-1/2


[Site "http://www.Chess.com"]

[Event "FIDE World Rapid Chess Championship 2021"]
[White "Sjugirov, Sanan"]
[Black "Bellahcene, Bilel"]
[WhiteFideId "4189302"]
[BlackFideId "696358"]
[WhiteElo "2634"]
[BlackElo "2397"]
[Result "1-0"]
[Round "12"]
[TimeControl "900+10"]
[Date "2021.12.28"]
[WhiteClock "0:03:31"]
[BlackClock "0:00:37"]

1. e4 {[%clk 0:15:27]}  c5 {[%clk 0:15:19]} 2. Nf3 {[%clk 0:15:27]}  e6 {[%clk 0:15:19]} 3. d4 {[%clk 0:15:27]}  cxd4 {[%clk 0:15:19]} 4. Nxd4 {[%clk 0:15:27]}  Nf6 {[%clk 0:15:19]} 5. Nc3 {[%clk 0:15:27]}  Nc6 {[%clk 0:15:19]} 6. Nxc6 {[%clk 0:15:27]}  bxc6 {[%clk 0:15:19]} 7. e5 {[%clk 0:15:27]}  Nd5 {[%clk 0:15:19]} 8. Ne4 {[%clk 0:15:27]}  Qc7 {[%clk 0:15:19]} 9. f4 {[%clk 0:15:27]}  Qb6 {[%clk 0:15:19]} 10. Bd3 {[%clk 0:15:27]}  Be7 {[%clk 0:14:34]} 11. a3 {[%clk 0:16:15]}  a5 {[%clk 0:14:34]} 12. Qe2 {[%clk 0:15:02]}  f5 {[%clk 0:10:02]} 13. Nf2 {[%clk 0:15:02]}  Bc5 {[%clk 0:10:02]} 14. O-O {[%clk 0:14:07]}  O-O {[%clk 0:08:49]} 15. c4 {[%clk 0:14:07]}  Ne3 {[%clk 0:08:29]} 16. b4 {[%clk 0:08:35]}  axb4 {[%clk 0:08:29]} 17. axb4 {[%clk 0:08:35]}  Rxa1 {[%clk 0:08:29]} 18. bxc5 {[%clk 0:08:35]}  Rxc1 {[%clk 0:08:29]} 19. Rxc1 {[%clk 0:08:39]}  Qxc5 {[%clk 0:06:58]} 20. Re1 {[%clk 0:08:39]}  Ng4 {[%clk 0:06:58]} 21. h3 {[%clk 0:08:39]}  Nh6 {[%clk 0:06:58]} 22. Qd2 {[%clk 0:08:39]}  Nf7 {[%clk 0:06:58]} 23. Bf1 {[%clk 0:08:39]}  Rd8 {[%clk 0:06:35]} 24. Qe3 {[%clk 0:07:07]}  Qxe3 {[%clk 0:06:35]} 25. Rxe3 {[%clk 0:07:07]}  d6 {[%clk 0:05:11]} 26. exd6 {[%clk 0:06:43]}  Rxd6 {[%clk 0:05:11]} 27. c5 {[%clk 0:06:43]}  Rd4 {[%clk 0:05:11]} 28. Rb3 {[%clk 0:06:43]}  Kf8 {[%clk 0:05:11]} 29. Rb8 {[%clk 0:06:43]}  Rd8 {[%clk 0:05:11]} 30. Rb6 {[%clk 0:06:43]}  Bd7 {[%clk 0:05:11]} 31. Bc4 {[%clk 0:06:43]}  Ke7 {[%clk 0:05:11]} 32. Nd3 {[%clk 0:06:43]}  Ra8 {[%clk 0:05:11]} 33. Kf2 {[%clk 0:06:47]}  h6 {[%clk 0:04:41]} 34. g3 {[%clk 0:06:47]}  Nd8 {[%clk 0:04:41]} 35. Ke3 {[%clk 0:06:47]}  Be8 {[%clk 0:03:40]} 36. Ne5 {[%clk 0:06:04]}  Ra3+ {[%clk 0:03:40]} 37. Bb3 {[%clk 0:06:04]}  Ra5 {[%clk 0:03:40]} 38. Kd4 {[%clk 0:06:04]}  Rb5 {[%clk 0:03:40]} 39. Bd1 {[%clk 0:06:01]}  Ra5 {[%clk 0:02:09]} 40. Rb8 {[%clk 0:06:01]}  Ra7 {[%clk 0:02:09]} 41. Kc3 {[%clk 0:04:20]}  Ra5 {[%clk 0:01:23]} 42. Kc4 {[%clk 0:03:31]}  g5 {[%clk 0:00:37]} 43. Rc8 {[%clk 0:03:31]}  Ra7 {[%clk 0:00:37]} 44. Kd4 {[%clk 0:03:31]}  gxf4 {[%clk 0:00:37]} 45. gxf4 {[%clk 0:03:31]}  Bd7 {[%clk 0:00:37]} 46. Ng6+ {[%clk 0:03:31]}  Kf6 {[%clk 0:00:37]} 47. Rxd8 {[%clk 0:03:31]}  Kxg6 {[%clk 0:00:37]} 48. Ke5 {[%clk 0:03:31]}  Kf7 {[%clk 0:00:37]} 49. Kd6 {[%clk 0:03:31]} 1-0


[Site "http://www.Chess.com"]

[Event "FIDE World Rapid Chess Championship 2021"]
[White "Christiansen, Johan-Sebastian"]
[Black "Corrales Jimenez, Fidel"]
[WhiteFideId "1512668"]
[BlackFideId "3506690"]
[WhiteElo "2522"]
[BlackElo "2561"]
[Result "0-1"]
[Round "12"]
[TimeControl "900+10"]
[Date "2021.12.28"]
[WhiteClock "0:00:35"]
[BlackClock "0:01:17"]

1. e4 {[%clk 0:15:19]}  c5 {[%clk 0:15:18]} 2. Nf3 {[%clk 0:15:19]}  d6 {[%clk 0:15:18]} 3. d4 {[%clk 0:15:19]}  cxd4 {[%clk 0:15:18]} 4. Nxd4 {[%clk 0:15:19]}  Nf6 {[%clk 0:15:18]} 5. Nc3 {[%clk 0:15:19]}  a6 {[%clk 0:15:18]} 6. h3 {[%clk 0:15:19]}  e5 {[%clk 0:15:18]} 7. Nb3 {[%clk 0:15:19]}  Be7 {[%clk 0:15:18]} 8. g4 {[%clk 0:15:19]}  h6 {[%clk 0:15:18]} 9. Bg2 {[%clk 0:15:19]}  Be6 {[%clk 0:15:18]} 10. f4 {[%clk 0:15:34]}  Nbd7 {[%clk 0:15:46]} 11. f5 {[%clk 0:15:34]}  Bc4 {[%clk 0:15:46]} 12. Be3 {[%clk 0:15:34]}  Rc8 {[%clk 0:15:46]} 13. Qd2 {[%clk 0:15:34]}  b5 {[%clk 0:15:46]} 14. Kf2 {[%clk 0:15:34]}  Qc7 {[%clk 0:14:53]} 15. Rhe1 {[%clk 0:14:04]}  b4 {[%clk 0:14:53]} 16. Ne2 {[%clk 0:14:04]}  a5 {[%clk 0:14:53]} 17. Ng3 {[%clk 0:14:04]}  Ba6 {[%clk 0:14:08]} 18. Rac1 {[%clk 0:13:24]}  a4 {[%clk 0:14:08]} 19. Na1 {[%clk 0:13:24]}  Qb7 {[%clk 0:14:08]} 20. Bf3 {[%clk 0:13:24]}  Nc5 {[%clk 0:12:13]} 21. Kg1 {[%clk 0:12:58]}  Ncxe4 {[%clk 0:10:18]} 22. Nxe4 {[%clk 0:12:58]}  Nxe4 {[%clk 0:10:18]} 23. Qg2 {[%clk 0:06:30]}  d5 {[%clk 0:10:11]} 24. Bxe4 {[%clk 0:06:30]}  dxe4 {[%clk 0:10:11]} 25. Bf2 {[%clk 0:06:30]}  Qc7 {[%clk 0:10:27]} 26. Qxe4 {[%clk 0:06:08]}  f6 {[%clk 0:06:06]} 27. Kh2 {[%clk 0:05:49]}  Bb7 {[%clk 0:06:06]} 28. Qe3 {[%clk 0:05:49]}  Ba8 {[%clk 0:04:36]} 29. Qb6 {[%clk 0:05:10]}  Qc4 {[%clk 0:04:36]} 30. b3 {[%clk 0:05:10]}  Qf4+ {[%clk 0:04:36]} 31. Bg3 {[%clk 0:05:10]}  Qf3 {[%clk 0:04:36]} 32. Qf2 {[%clk 0:05:10]}  Qc6 {[%clk 0:04:36]} 33. bxa4 {[%clk 0:04:10]}  h5 {[%clk 0:04:16]} 34. gxh5 {[%clk 0:04:10]}  Rxh5 {[%clk 0:04:16]} 35. Re2 {[%clk 0:04:10]}  Kf7 {[%clk 0:04:16]} 36. Nb3 {[%clk 0:04:10]}  Rch8 {[%clk 0:04:16]} 37. h4 {[%clk 0:04:10]}  Qc4 {[%clk 0:04:16]} 38. Kh3 {[%clk 0:04:10]}  Rg5 {[%clk 0:04:16]} 39. Rg1 {[%clk 0:03:17]}  Qg4+ {[%clk 0:04:27]} 40. Kh2 {[%clk 0:03:17]}  Rgh5 {[%clk 0:04:08]} 41. Rg2 {[%clk 0:01:12]}  Rxf5 {[%clk 0:04:08]} 42. Qe1 {[%clk 0:01:12]}  g5 {[%clk 0:03:26]} 43. Kg1 {[%clk 0:01:18]}  gxh4 {[%clk 0:03:26]} 44. Bh2 {[%clk 0:01:18]}  Bxg2 {[%clk 0:03:26]} 45. Rxg2 {[%clk 0:01:18]}  Bc5+ {[%clk 0:03:26]} 46. Nxc5 {[%clk 0:01:18]}  Qd4+ {[%clk 0:03:26]} 47. Kh1 {[%clk 0:01:18]}  Qxc5 {[%clk 0:03:26]} 48. Qe4 {[%clk 0:01:18]}  Ke6 {[%clk 0:03:26]} 49. Bg1 {[%clk 0:00:35]}  Qd5 {[%clk 0:01:17]} 50. Qxb4 {[%clk 0:00:35]}  Rg5 {[%clk 0:01:17]} 51. Qb6+ {[%clk 0:00:35]}  Kf7 {[%clk 0:01:17]} 52. Qb7+ {[%clk 0:00:35]}  Qxb7 {[%clk 0:01:17]} 0-1


[Site "http://www.Chess.com"]

[Event "FIDE World Rapid Chess Championship 2021"]
[White "Yuffa, Daniil"]
[Black "Parligras, Mircea-Emilian"]
[WhiteFideId "24131423"]
[BlackFideId "1204297"]
[WhiteElo "2514"]
[BlackElo "2550"]
[Result "1/2-1/2"]
[Round "12"]
[TimeControl "900+10"]
[Date "2021.12.28"]
[WhiteClock "0:03:01"]
[BlackClock "0:02:43"]

1. d4 {[%clk 0:15:18]}  Nf6 {[%clk 0:15:18]} 2. c4 {[%clk 0:15:18]}  e6 {[%clk 0:15:18]} 3. g3 {[%clk 0:15:18]}  d5 {[%clk 0:15:18]} 4. Bg2 {[%clk 0:15:18]}  Bb4+ {[%clk 0:15:18]} 5. Bd2 {[%clk 0:15:18]}  Be7 {[%clk 0:15:18]} 6. Nf3 {[%clk 0:15:18]}  O-O {[%clk 0:15:18]} 7. O-O {[%clk 0:15:18]}  c6 {[%clk 0:15:18]} 8. Bc3 {[%clk 0:15:18]}  Ne4 {[%clk 0:15:18]} 9. Nbd2 {[%clk 0:15:18]}  Nxc3 {[%clk 0:15:18]} 10. bxc3 {[%clk 0:15:18]}  Nd7 {[%clk 0:15:18]} 11. Qb3 {[%clk 0:15:18]}  b6 {[%clk 0:15:48]} 12. a4 {[%clk 0:16:02]}  Rb8 {[%clk 0:15:48]} 13. cxd5 {[%clk 0:16:02]}  cxd5 {[%clk 0:15:48]} 14. c4 {[%clk 0:16:02]}  Bb7 {[%clk 0:15:48]} 15. Rfc1 {[%clk 0:16:02]}  dxc4 {[%clk 0:14:21]} 16. Nxc4 {[%clk 0:15:45]}  Rc8 {[%clk 0:14:21]} 17. Qd3 {[%clk 0:15:45]}  Nf6 {[%clk 0:14:21]} 18. Nfe5 {[%clk 0:14:56]}  Bxg2 {[%clk 0:12:44]} 19. Kxg2 {[%clk 0:14:56]}  Qd5+ {[%clk 0:12:44]} 20. Kg1 {[%clk 0:13:37]}  Rfd8 {[%clk 0:12:44]} 21. Ne3 {[%clk 0:13:37]}  Qb7 {[%clk 0:12:26]} 22. Rab1 {[%clk 0:10:07]}  Rxc1+ {[%clk 0:12:26]} 23. Rxc1 {[%clk 0:10:07]}  Rc8 {[%clk 0:12:26]} 24. Rxc8+ {[%clk 0:09:20]}  Qxc8 {[%clk 0:10:33]} 25. Qb5 {[%clk 0:09:20]}  Bd6 {[%clk 0:10:33]} 26. Nc6 {[%clk 0:08:27]}  Qc7 {[%clk 0:09:14]} 27. Nc4 {[%clk 0:08:27]}  Bf8 {[%clk 0:09:14]} 28. N4e5 {[%clk 0:08:04]}  Nd7 {[%clk 0:07:48]} 29. Nxd7 {[%clk 0:08:04]}  Qxd7 {[%clk 0:07:48]} 30. e4 {[%clk 0:08:04]}  h5 {[%clk 0:06:55]} 31. h4 {[%clk 0:06:47]}  g6 {[%clk 0:06:55]} 32. Kg2 {[%clk 0:06:47]}  Qc7 {[%clk 0:06:55]} 33. d5 {[%clk 0:06:47]}  exd5 {[%clk 0:06:55]} 34. Qxd5 {[%clk 0:05:26]}  a6 {[%clk 0:06:03]} 35. e5 {[%clk 0:05:26]}  Qc8 {[%clk 0:06:03]} 36. Nd4 {[%clk 0:04:19]}  Bc5 {[%clk 0:04:52]} 37. Nf3 {[%clk 0:04:19]}  Be7 {[%clk 0:04:09]} 38. Nd4 {[%clk 0:02:52]}  Bc5 {[%clk 0:04:09]} 39. Nf3 {[%clk 0:03:01]}  Be7 {[%clk 0:02:43]} 40. Nd4 {[%clk 0:03:01]}  Bc5 {[%clk 0:02:43]} 1/2-1/2


[Site "http://www.Chess.com"]

[Event "FIDE World Rapid Chess Championship 2021"]
[White "Vokhidov, Shamsiddin"]
[Black "Murzin, Volodar"]
[WhiteFideId "14204223"]
[BlackFideId "44155573"]
[WhiteElo "2546"]
[BlackElo "2523"]
[Result "1-0"]
[Round "12"]
[TimeControl "900+10"]
[Date "2021.12.28"]
[WhiteClock "0:03:04"]
[BlackClock "0:00:11"]

1. e4 {[%clk 0:15:19]}  c6 {[%clk 0:15:19]} 2. d4 {[%clk 0:15:19]}  d5 {[%clk 0:15:19]} 3. e5 {[%clk 0:15:19]}  Bf5 {[%clk 0:15:19]} 4. h4 {[%clk 0:15:19]}  h5 {[%clk 0:15:19]} 5. c4 {[%clk 0:15:19]}  e6 {[%clk 0:15:19]} 6. Nc3 {[%clk 0:15:19]}  Ne7 {[%clk 0:15:19]} 7. Nge2 {[%clk 0:15:19]}  dxc4 {[%clk 0:15:19]} 8. Ng3 {[%clk 0:15:48]}  b5 {[%clk 0:15:09]} 9. Bg5 {[%clk 0:15:48]}  Qb6 {[%clk 0:15:09]} 10. Be2 {[%clk 0:15:48]}  Bg6 {[%clk 0:15:09]} 11. a4 {[%clk 0:15:48]}  Nd5 {[%clk 0:07:55]} 12. axb5 {[%clk 0:14:26]}  Bb4 {[%clk 0:07:55]} 13. Bd2 {[%clk 0:13:51]}  Qxd4 {[%clk 0:07:06]} 14. O-O {[%clk 0:11:40]}  Bxc3 {[%clk 0:07:06]} 15. bxc3 {[%clk 0:11:40]}  Qxe5 {[%clk 0:02:23]} 16. Bxc4 {[%clk 0:11:47]}  O-O {[%clk 0:02:23]} 17. Re1 {[%clk 0:11:47]}  Qc7 {[%clk 0:01:35]} 18. Nxh5 {[%clk 0:10:43]}  Nd7 {[%clk 0:01:35]} 19. Ng3 {[%clk 0:10:43]}  N7b6 {[%clk 0:01:35]} 20. Bf1 {[%clk 0:09:11]}  cxb5 {[%clk 0:00:35]} 21. h5 {[%clk 0:09:11]}  Bf5 {[%clk 0:00:35]} 22. h6 {[%clk 0:09:11]}  g6 {[%clk 0:00:35]} 23. Qf3 {[%clk 0:09:11]}  Nc4 {[%clk 0:00:35]} 24. Bg5 {[%clk 0:08:07]}  Ne5 {[%clk 0:00:16]} 25. Qe2 {[%clk 0:08:07]}  Nc4 {[%clk 0:00:16]} 26. Nxf5 {[%clk 0:08:07]}  gxf5 {[%clk 0:00:16]} 27. Rad1 {[%clk 0:06:06]}  Kh7 {[%clk 0:00:14]} 28. Rxd5 {[%clk 0:06:06]}  exd5 {[%clk 0:00:14]} 29. Qf3 {[%clk 0:06:06]}  Nd6 {[%clk 0:00:14]} 30. Bd3 {[%clk 0:06:06]}  Qc6 {[%clk 0:00:14]} 31. Be7 {[%clk 0:06:06]}  Rfe8 {[%clk 0:00:14]} 32. Qg3 {[%clk 0:05:34]}  Rg8 {[%clk 0:00:00]} 33. Qxd6 {[%clk 0:05:34]}  Qxd6 {[%clk 0:00:00]} 34. Bxd6 {[%clk 0:05:34]}  Kxh6 {[%clk 0:00:00]} 35. Bxf5 {[%clk 0:05:34]}  Rge8 {[%clk 0:00:00]} 36. Be7 {[%clk 0:05:34]}  Kg7 {[%clk 0:00:00]} 37. Bd7 {[%clk 0:03:25]}  Rh8 {[%clk 0:00:00]} 38. Bxb5 {[%clk 0:03:25]}  Rac8 {[%clk 0:00:00]} 39. Bd6 {[%clk 0:03:25]}  a6 {[%clk 0:00:00]} 40. Ba4 {[%clk 0:03:04]}  f6 {[%clk 0:00:11]} 41. Re7+ {[%clk 0:03:04]}  Kh6 {[%clk 0:00:11]} 42. Bf4+ {[%clk 0:03:04]}  Kh5 {[%clk 0:00:11]} 43. Rg7 {[%clk 0:03:04]} 1-0


[Site "http://www.Chess.com"]

[Event "FIDE World Rapid Chess Championship 2021"]
[White "Holm, Kristian Stuvik"]
[Black "Bartel, Mateusz"]
[WhiteFideId "1508083"]
[BlackFideId "1112635"]
[WhiteElo "2409"]
[BlackElo "2543"]
[Result "1/2-1/2"]
[Round "12"]
[TimeControl "900+10"]
[Date "2021.12.28"]
[WhiteClock "0:00:00"]
[BlackClock "0:05:12"]

1. d4 {[%clk 0:15:07]}  e6 {[%clk 0:15:10]} 2. c4 {[%clk 0:15:07]}  b6 {[%clk 0:15:10]} 3. a3 {[%clk 0:15:07]}  Bb7 {[%clk 0:15:10]} 4. Nc3 {[%clk 0:15:07]}  f5 {[%clk 0:15:10]} 5. d5 {[%clk 0:15:07]}  Nf6 {[%clk 0:15:10]} 6. g3 {[%clk 0:15:07]}  Na6 {[%clk 0:14:38]} 7. Bg2 {[%clk 0:14:13]}  Nc5 {[%clk 0:14:38]} 8. Nf3 {[%clk 0:14:13]}  a5 {[%clk 0:14:38]} 9. O-O {[%clk 0:14:13]}  Bd6 {[%clk 0:14:38]} 10. Nb5 {[%clk 0:11:13]}  O-O {[%clk 0:11:57]} 11. Nxd6 {[%clk 0:11:13]}  cxd6 {[%clk 0:11:57]} 12. a4 {[%clk 0:11:13]}  Qe7 {[%clk 0:11:57]} 13. Nd4 {[%clk 0:08:45]}  Rae8 {[%clk 0:11:57]} 14. Bg5 {[%clk 0:07:47]}  h6 {[%clk 0:10:23]} 15. Bxf6 {[%clk 0:07:47]}  Qxf6 {[%clk 0:10:23]} 16. Nb5 {[%clk 0:07:47]}  e5 {[%clk 0:10:23]} 17. b3 {[%clk 0:05:27]}  Ba6 {[%clk 0:10:23]} 18. Nc3 {[%clk 0:05:27]}  e4 {[%clk 0:10:23]} 19. Rc1 {[%clk 0:05:27]}  f4 {[%clk 0:10:23]} 20. Qc2 {[%clk 0:05:06]}  f3 {[%clk 0:08:26]} 21. exf3 {[%clk 0:02:23]}  exf3 {[%clk 0:08:29]} 22. Bh3 {[%clk 0:02:23]}  Qe5 {[%clk 0:08:29]} 23. Rfd1 {[%clk 0:02:23]}  Qh5 {[%clk 0:07:03]} 24. Bf1 {[%clk 0:01:16]}  Re5 {[%clk 0:07:03]} 25. Re1 {[%clk 0:01:16]}  Qg4 {[%clk 0:07:03]} 26. h3 {[%clk 0:00:00]}  Qh5 {[%clk 0:05:12]} 27. Ne4 {[%clk 0:00:00]}  Rfe8 {[%clk 0:05:12]} 28. Nxc5 {[%clk 0:00:00]}  Rxe1 {[%clk 0:05:12]} 29. Rxe1 {[%clk 0:00:00]}  Rxe1 {[%clk 0:05:12]} 30. Nd3 {[%clk 0:00:00]}  Ra1 {[%clk 0:05:12]} 31. Qb2 {[%clk 0:00:00]}  Rd1 {[%clk 0:05:12]} 1/2-1/2


[Site "http://www.Chess.com"]